fUSD/lending_fUSD_20250216
["ID","MTS","AMOUNT","RATE_DAILY","PERIOD"]
[353265315,1739722268180,-500.0,0.00011943,2]
[353265316,1739722268190,-500.0,0.00011943,2]
[353265317,1739722268199,-579.91,0.00011943,2]
[353265318,1739722268209,-500.0,0.00011943,2]
[353265319,1739722268218,-809.97,0.00011943,2]
[353265320,1739722268228,-969.53,0.00011943,2]
[353265321,1739722268237,-721.65,0.00011943,2]
[353265322,1739722268246,-500.0,0.00011943,2]
[353265323,1739722268256,-537.83,0.00011943,2]
[353265324,1739722268265,-500.0,0.00011943,2]
[353265325,1739722268275,-742.79,0.00011943,2]
[353265326,1739722268284,-849.81,0.00011943,2]
[353265327,1739722268293,-1000.0,0.00011943,2]
[353265328,1739722268303,-788.66,0.00011943,2]
[353265329,1739722268312,-730.86,0.00011943,2]
[353265330,1739722268322,-899.47,0.00011943,2]
[353265331,1739722268331,-500.0,0.00011943,2]
[353265332,1739722268342,-1749.0,0.00012,2]
[353265333,1739722268351,-500.0,0.00012002,2]
[353265334,1739722268361,-500.0,0.00012002,2]
[353265335,1739722268370,-680.35,0.00012002,2]
[353265336,1739722268381,-500.0,0.00012002,2]
[353265337,1739722268390,-730.51,0.00012002,2]
[353265338,1739722268400,-500.0,0.00012002,2]
[353265339,1739722268409,-744.11,0.00012002,2]
[353265340,1739722268419,-518.56,0.00012002,2]
[353265341,1739722268429,-500.0,0.00012002,2]
[353265342,1739722268438,-1094.78,0.00012002,2]
[353265343,1739722268448,-197.36,0.00012002,2]
[353265344,1739722268457,-1254.55,0.00012002,2]
[353265345,1739722268467,-624.5,0.00012002,2]
[353265346,1739722268476,-561.95,0.00012002,2]
[353265347,1739722268485,-500.0,0.00012002,2]
[353265348,1739722268494,-1045.33,0.00012002,2]
[353265349,1739722268503,-500.0,0.00012002,2]
[353265350,1739722268512,-562.41,0.00012002,2]
[353265351,1739722268521,-537.7,0.00012002,2]
[353265352,1739722268530,-1330.29,0.00012002,2]
[353265353,1739722268539,-1309.87,0.00012002,2]
[353265354,1739722268548,-500.0,0.00012002,2]
[353265355,1739722268558,-500.0,0.00012002,2]
[353265356,1739722268568,-500.0,0.00012002,2]
[353265357,1739722268578,-587.45,0.00012002,2]
[353265358,1739722268587,-954.36,0.00012002,2]
[353265359,1739722268597,-500.0,0.00012002,2]
[353265360,1739722268606,-500.0,0.00012024,2]
[353265361,1739722268615,-370.88543148,0.00012024,2]
[353265362,1739722268625,-500.0,0.00012024,2]
[353265363,1739722268634,-500.0,0.00012024,2]
[353265364,1739722268643,-180.26484395,0.00012024,2]
[353265365,1739722268652,-500.0,0.00012024,2]
[353265366,1739722268661,-479.96177447,0.00012024,2]
[353265367,1739722268670,-500.0,0.00012024,2]
[353265368,1739722268679,-374.68933165,0.00012024,2]
[353265369,1739722268688,-527.75,0.00012024,2]
[353265370,1739722268698,-500.0,0.00012024,2]
[353265371,1739722268707,-500.0,0.00012024,2]
[353265372,1739722268716,-500.0,0.00012024,2]
[353265373,1739722268725,-500.0,0.00012024,2]
[353265374,1739722268734,-500.0,0.00012024,2]
[353265375,1739722268743,-500.0,0.00012024,2]
[353265376,1739722268752,-500.0,0.00012024,2]
[353265377,1739722268763,-500.0,0.00012024,2]
[353265378,1739722268773,-500.0,0.00012024,2]
[353265379,1739722268783,-500.0,0.00012024,2]
[353265380,1739722268795,-500.0,0.00012024,2]
[353265381,1739722268804,-500.0,0.00012024,2]
[353265382,1739722268814,-500.0,0.00012024,2]
[353265383,1739722268823,-500.0,0.00012024,2]
[353265384,1739722268832,-649.78,0.00012024,2]
[353265385,1739722268842,-1206.44,0.00012024,2]
[353265386,1739722268853,-500.0,0.00012024,2]
[353265387,1739722268862,-500.0,0.00012024,2]
[353265388,1739722268871,-334.019757,0.00012024,2]
[353265389,1739722268880,-706.8,0.00012024,2]
[353265390,1739722268889,-500.0,0.00012024,2]
[353265391,1739722268898,-500.0,0.00012024,2]
[353265392,1739722268908,-442.486785,0.00012024,2]
[353265393,1739722268917,-500.0,0.00012024,2]
[353265394,1739722268926,-2145.36,0.00012024,2]
[353265395,1739722268935,-956.97,0.00012024,2]
[353265396,1739722268945,-500.0,0.00012024,2]
[353265397,1739722268954,-536.29,0.00012024,2]
[353265398,1739722268963,-747.46,0.00012024,2]
[353265399,1739722268972,-500.0,0.00012024,2]
[353265400,1739722268982,-692.26,0.00012024,2]
[353265401,1739722268992,-609.14,0.00012024,2]
[353265402,1739722269001,-509.42850449,0.00012024,2]
[353265403,1739722269010,-512.74,0.00012024,2]
[353265404,1739722269020,-500.0,0.00012024,2]
[353265405,1739722269033,-892.17,0.00012024,2]
[353265406,1739722269042,-500.0,0.00012024,2]
[353265407,1739722269051,-663.59,0.00012024,2]
[353265408,1739722269060,-1575.94,0.00012024,2]
[353265409,1739722269070,-612.7,0.00012024,2]
[353265410,1739722269079,-500.0,0.00012024,2]
[353265411,1739722269088,-558.19,0.00012024,2]
[353265412,1739722269097,-500.0,0.00012024,2]
[353265413,1739722269107,-381.82,0.00012024,2]
[353265414,1739722269118,-500.0,0.00012024,2]
[353265415,1739722269127,-690.88,0.00012024,2]
[353265416,1739722269136,-245.24458472,0.00012024,2]
[353265417,1739722269145,-1095.32,0.00012024,2]
[353265418,1739722269155,-500.0,0.00012024,2]
[353265419,1739722269165,-680.75,0.00012024,2]
[353265420,1739722269175,-500.0,0.00012024,2]
[353265421,1739722269185,-865.4,0.00012024,2]
[353265422,1739722269194,-500.0,0.00012024,2]
[353265423,1739722269203,-649.43,0.00012024,2]
[353265424,1739722269212,-692.22,0.00012024,2]
[353265425,1739722269222,-1772.42,0.00012024,2]
[353265426,1739722269231,-873.89,0.00012024,2]
[353265427,1739722269240,-500.0,0.00012024,2]
[353265428,1739722269250,-500.0,0.00012024,2]
[353265429,1739722269259,-500.0,0.00012024,2]
[353265430,1739722269268,-500.0,0.00012024,2]
[353265431,1739722269278,-941.43,0.00012024,2]
[353265432,1739722269287,-500.0,0.00012024,2]
[353265433,1739722269296,-500.0,0.00012024,2]
[353265434,1739722269305,-549.57,0.00012024,2]
[353265435,1739722269315,-500.0,0.00012024,2]
[353265436,1739722269324,-733.73,0.00012024,2]
[353265437,1739722269334,-500.0,0.00012024,2]
[353265438,1739722269343,-862.86,0.00012024,2]
[353265439,1739722269353,-604.23,0.00012024,2]
[353265440,1739722269363,-500.0,0.00012024,2]
[353265441,1739722269372,-500.0,0.00012024,2]
[353265442,1739722269382,-784.87,0.00012024,2]
[353265443,1739722269392,-500.0,0.00012024,2]
[353265444,1739722269401,-975.8,0.00012024,2]
[353265445,1739722269410,-2237.07,0.00012024,2]
[353265446,1739722269420,-525.89,0.00012024,2]
[353265447,1739722269429,-500.0,0.00012024,2]
[353265448,1739722269438,-500.0,0.00012025,2]
[353265449,1739722269447,-768.0,0.00012025,2]
[353265450,1739722269457,-579.91,0.00012025,2]
[353265451,1739722269467,-809.97,0.00012025,2]
[353265452,1739722269476,-969.53,0.00012025,2]
[353265453,1739722269486,-500.0,0.00012025,2]
[353265454,1739722269495,-537.83,0.00012025,2]
[353265455,1739722269505,-742.79,0.00012025,2]
[353265456,1739722269515,-849.81,0.00012025,2]
[353265457,1739722269525,-1000.0,0.00012025,2]
[353265458,1739722269535,-788.66,0.00012025,2]
[353265459,1739722269545,-730.86,0.00012025,2]
[353265460,1739722269554,-899.47,0.00012025,2]
[353265461,1739722269563,-500.0,0.00012026,2]
[353265462,1739722269573,-500.0,0.00012026,2]
[353265463,1739722269583,-500.0,0.00012026,2]
[353265464,1739722269593,-500.0,0.00012026,2]
[353265465,1739722269602,-500.0,0.00012026,2]
[353265466,1739722269612,-500.0,0.00012026,2]
[353265467,1739722269624,-500.0,0.00012026,2]
[353265468,1739722269634,-500.0,0.00012026,2]
[353265469,1739722269643,-500.0,0.00012026,2]
[353265470,1739722269652,-579.79,0.00012026,2]
[353265471,1739722269663,-500.0,0.00012026,2]
[353265472,1739722269672,-296.55247809,0.00012026,2]
[353265473,1739722269682,-500.0,0.00012026,2]
[353265474,1739722269692,-500.0,0.00012026,2]
[353265475,1739722269701,-500.0,0.00012026,2]
[353265476,1739722269712,-500.0,0.00012026,2]
[353265477,1739722269721,-500.0,0.00012026,2]
[353265478,1739722269731,-500.0,0.00012026,2]
[353265479,1739722269741,-706.17,0.00012026,2]
[353265480,1739722269750,-500.0,0.00012026,2]
[353265481,1739722269760,-500.0,0.00012026,2]
[353265482,1739722269769,-500.0,0.00012026,2]
[353265483,1739722269779,-500.0,0.00012026,2]
[353265484,1739722269790,-500.0,0.00012026,2]
[353265485,1739722269799,-500.0,0.00012026,2]
[353265486,1739722269809,-721.65,0.00012026,2]
[353265487,1739722269819,-500.0,0.00012026,2]
[353265488,1739722269829,-500.0,0.00012026,2]
[353265489,1739722269838,-157.6233548,0.00012027,2]
[353265490,1739722269847,-500.0,0.00012084,2]
[353265491,1739722269857,-500.0,0.00012084,2]
[353265492,1739722269867,-680.35,0.00012084,2]
[353265493,1739722269877,-500.0,0.00012084,2]
[353265494,1739722269886,-730.51,0.00012084,2]
[353265495,1739722269896,-402.60550157,0.00012084,2]
[353265496,1739722269905,-744.11,0.00012084,2]
[353265497,1739722269917,-518.56,0.00012084,2]
[353265498,1739722269927,-500.0,0.00012084,2]
[353265499,1739722269939,-1094.78,0.00012084,2]
[353265500,1739722269952,-1254.55,0.00012084,2]
[353265501,1739722269962,-624.5,0.00012084,2]
[353265502,1739722269972,-561.95,0.00012084,2]
[353265503,1739722269982,-500.0,0.00012084,2]
[353265504,1739722269992,-1045.33,0.00012084,2]
[353265505,1739722270002,-500.0,0.00012084,2]
[353265506,1739722270011,-562.41,0.00012084,2]
[353265507,1739722270020,-537.7,0.00012084,2]
[353265508,1739722270034,-1330.29,0.00012084,2]
[353265509,1739722270045,-1309.87,0.00012084,2]
[353265510,1739722270054,-500.0,0.00012084,2]
[353265511,1739722270064,-500.0,0.00012084,2]
[353265512,1739722270074,-301.55238284,0.00012084,2]
[353265513,1739722270084,-587.45,0.00012084,2]
[353265514,1739722270094,-954.36,0.00012084,2]
[353265515,1739722270103,-500.0,0.00012084,2]
[353265516,1739722270114,-6611.09,0.00012087,2]
[353265517,1739722270124,-299.99,0.00012087,2]
[353265518,1739722270133,-7023.66,0.00012087,2]
[353265519,1739722270143,-9999.99,0.00012087,2]
[353265520,1739722270152,-999.99,0.00012087,2]
[353265521,1739722270162,-44120.21,0.00012087,2]
[353265522,1739722270172,-9999.99,0.00012087,2]
[353265523,1739722270181,-8633.24,0.00012087,2]
[353265524,1739722270190,-150.99,0.00012087,2]
[353265525,1739722270202,-150.99,0.00012087,2]
[353265526,1739722270211,-499.99,0.00012087,2]
[353265527,1739722270223,-500.0,0.00012106,2]
[353265528,1739722270233,-500.0,0.00012106,2]
[353265529,1739722270243,-500.0,0.00012106,2]
[353265530,1739722270253,-500.0,0.00012106,2]
[353265531,1739722270263,-500.0,0.00012106,2]
[353265532,1739722270273,-500.0,0.00012106,2]
[353265533,1739722270282,-500.0,0.00012106,2]
[353265534,1739722270291,-500.0,0.00012106,2]
[353265535,1739722270300,-649.78,0.00012106,2]
[353265536,1739722270310,-1206.44,0.00012106,2]
[353265537,1739722270320,-706.8,0.00012106,2]
[353265538,1739722270330,-500.0,0.00012106,2]
[353265539,1739722270339,-956.97,0.00012106,2]
[353265540,1739722270349,-747.46,0.00012106,2]
[353265541,1739722270359,-692.26,0.00012106,2]
[353265542,1739722270369,-892.17,0.00012106,2]
[353265543,1739722270379,-500.0,0.00012106,2]
[353265544,1739722270389,-612.7,0.00012106,2]
[353265545,1739722270399,-500.0,0.00012106,2]
[353265546,1739722270409,-1095.32,0.00012106,2]
[353265547,1739722270419,-500.0,0.00012106,2]
[353265548,1739722270429,-649.43,0.00012106,2]
[353265549,1739722270439,-692.22,0.00012106,2]
[353265550,1739722270449,-500.0,0.00012106,2]
[353265551,1739722270458,-204.68104072,0.00012106,2]
[353265552,1739722270469,-417.71588925,0.00012106,2]
[353265553,1739722270479,-941.43,0.00012106,2]
[353265554,1739722270489,-549.57,0.00012106,2]
[353265555,1739722270499,-733.73,0.00012106,2]
[353265556,1739722270508,-500.0,0.00012106,2]
[353265557,1739722270518,-862.86,0.00012106,2]
[353265558,1739722270527,-604.23,0.00012106,2]
[353265559,1739722270537,-784.87,0.00012106,2]
[353265560,1739722270547,-500.0,0.00012106,2]
[353265561,1739722270557,-975.8,0.00012106,2]
[353265562,1739722270567,-2237.07,0.00012106,2]
[353265563,1739722270577,-500.0,0.00012107,2]
[353265564,1739722270586,-500.0,0.00012107,2]
[353265565,1739722270596,-500.0,0.00012107,2]
[353265566,1739722270606,-527.75,0.00012107,2]
[353265567,1739722270616,-500.0,0.00012107,2]
[353265568,1739722270626,-500.0,0.00012107,2]
[353265569,1739722270636,-500.0,0.00012107,2]
[353265570,1739722270646,-500.0,0.00012107,2]
[353265571,1739722270656,-500.0,0.00012107,2]
[353265572,1739722270665,-500.0,0.00012107,2]
[353265573,1739722270675,-500.0,0.00012107,2]
[353265574,1739722270685,-500.0,0.00012107,2]
[353265575,1739722270694,-500.0,0.00012107,2]
[353265576,1739722270704,-500.0,0.00012107,2]
[353265577,1739722270714,-334.019757,0.00012107,2]
[353265578,1739722270724,-768.0,0.00012107,2]
[353265579,1739722270734,-500.0,0.00012107,2]
[353265580,1739722270744,-442.486785,0.00012107,2]
[353265581,1739722270754,-500.0,0.00012107,2]
[353265582,1739722270765,-2145.36,0.00012107,2]
[353265583,1739722270775,-579.91,0.00012107,2]
[353265584,1739722270785,-500.0,0.00012107,2]
[353265585,1739722270795,-536.29,0.00012107,2]
[353265586,1739722270805,-500.0,0.00012107,2]
[353265587,1739722270815,-609.14,0.00012107,2]
[353265588,1739722270825,-809.97,0.00012107,2]
[353265589,1739722270835,-512.74,0.00012107,2]
[353265590,1739722270845,-500.0,0.00012107,2]
[353265591,1739722270854,-969.53,0.00012107,2]
[353265592,1739722270864,-663.59,0.00012107,2]
[353265593,1739722270874,-1575.94,0.00012107,2]
[353265594,1739722270884,-500.0,0.00012107,2]
[353265595,1739722270895,-558.19,0.00012107,2]
[353265596,1739722270905,-500.0,0.00012107,2]
[353265597,1739722270916,-537.83,0.00012107,2]
[353265598,1739722270926,-500.0,0.00012107,2]
[353265599,1739722270936,-690.88,0.00012107,2]
[353265600,1739722270946,-742.79,0.00012107,2]
[353265601,1739722270957,-680.75,0.00012107,2]
[353265602,1739722270968,-500.0,0.00012107,2]
[353265603,1739722270978,-849.81,0.00012107,2]
[353265604,1739722270988,-865.4,0.00012107,2]
[353265605,1739722270998,-500.0,0.00012107,2]
[353265606,1739722271008,-1071.63574063,0.00012107,2]
[353265607,1739722271019,-1772.42,0.00012107,2]
[353265608,1739722271031,-873.89,0.00012107,2]
[353265609,1739722271042,-788.66,0.00012107,2]
[353265610,1739722271052,-500.0,0.00012107,2]
[353265611,1739722271063,-730.86,0.00012107,2]
[353265612,1739722271074,-500.0,0.00012107,2]
[353265613,1739722271084,-500.0,0.00012107,2]
[353265614,1739722271094,-899.47,0.00012107,2]
[353265615,1739722271106,-500.0,0.00012107,2]
[353265616,1739722271116,-500.0,0.00012107,2]
[353265617,1739722271126,-595.2,0.00012107,2]
[353265618,1739722271136,-525.89,0.00012107,2]
[353265619,1739722271146,-500.0,0.00012107,2]
[353265620,1739722271155,-500.0,0.00012108,2]
[353265621,1739722271166,-500.0,0.00012108,2]
[353265622,1739722271176,-500.0,0.00012108,2]
[353265623,1739722271186,-500.0,0.00012108,2]
[353265624,1739722271196,-500.0,0.00012108,2]
[353265625,1739722271205,-500.0,0.00012108,2]
[353265626,1739722271215,-500.0,0.00012108,2]
[353265627,1739722271225,-500.0,0.00012108,2]
[353265628,1739722271234,-354.26913183,0.00012108,2]
[353265629,1739722271244,-579.79,0.00012108,2]
[353265630,1739722271254,-500.0,0.00012108,2]
[353265631,1739722271264,-500.0,0.00012108,2]
[353265632,1739722271274,-500.0,0.00012108,2]
[353265633,1739722271284,-500.0,0.00012108,2]
[353265634,1739722271294,-500.0,0.00012108,2]
[353265635,1739722271303,-259.27217316,0.00012108,2]
[353265636,1739722271312,-500.0,0.00012108,2]
[353265637,1739722271322,-706.17,0.00012108,2]
[353265638,1739722271332,-500.0,0.00012108,2]
[353265639,1739722271342,-500.0,0.00012108,2]
[353265640,1739722271352,-500.0,0.00012108,2]
[353265641,1739722271362,-500.0,0.00012108,2]
[353265642,1739722271372,-500.0,0.00012108,2]
[353265643,1739722271382,-500.0,0.00012108,2]
[353265644,1739722271392,-721.65,0.00012108,2]
[353265645,1739722271402,-458.50677528,0.00012108,2]
[353265646,1739722271412,-500.0,0.00012108,2]
[353265647,1739722271421,-500.0,0.00012162,2]
[353265648,1739722271431,-500.0,0.00012167,2]
[353265649,1739722271442,-500.0,0.00012167,2]
[353265650,1739722271451,-680.35,0.00012167,2]
[353265651,1739722271462,-500.0,0.00012167,2]
[353265652,1739722271472,-730.51,0.00012167,2]
[353265653,1739722271482,-744.11,0.00012167,2]
[353265654,1739722271492,-518.56,0.00012167,2]
[353265655,1739722271502,-500.0,0.00012167,2]
[353265656,1739722271513,-1094.78,0.00012167,2]
[353265657,1739722271523,-1254.55,0.00012167,2]
[353265658,1739722271533,-624.5,0.00012167,2]
[353265659,1739722271543,-561.95,0.00012167,2]
[353265660,1739722271554,-500.0,0.00012167,2]
[353265661,1739722271564,-1045.33,0.00012167,2]
[353265662,1739722271575,-500.0,0.00012167,2]
[353265663,1739722271585,-562.41,0.00012167,2]
[353265664,1739722271595,-537.7,0.00012167,2]
[353265665,1739722271606,-1330.29,0.00012167,2]
[353265666,1739722271616,-1309.87,0.00012167,2]
[353265667,1739722271626,-500.0,0.00012167,2]
[353265668,1739722271637,-500.0,0.00012167,2]
[353265669,1739722271647,-587.45,0.00012167,2]
[353265670,1739722271657,-954.36,0.00012167,2]
[353265671,1739722271668,-500.0,0.00012167,2]
[353265672,1739722271677,-500.0,0.00012173,2]
[353265673,1739722271687,-182.28331995,0.00012173,2]
[353265674,1739722271697,-500.0,0.00012173,2]
[353265675,1739722271706,-201.58383424,0.00012173,2]
[353265676,1739722271717,-500.0,0.00012173,2]
[353265677,1739722271727,-155.44100501,0.00012173,2]
[353265678,1739722271737,-160.50540849,0.00012173,2]
[353265679,1739722271746,-994926.45984234,0.0001218,2]
[353265680,1739722271757,-500.0,0.00012189,2]
[353265681,1739722271767,-500.0,0.00012189,2]
[353265682,1739722271777,-500.0,0.00012189,2]
[353265683,1739722271787,-500.0,0.00012189,2]
[353265684,1739722271797,-500.0,0.00012189,2]
[353265685,1739722271806,-527.75,0.00012189,2]
[353265686,1739722271816,-411.66616837,0.00012189,2]
[353265687,1739722271826,-479.56,0.00012189,2]
[353265688,1739722271837,-221.82124182,0.00012189,2]
[353265689,1739722272012,-283.09292239,0.00012189,2]
[353265690,1739722272045,-500.0,0.00012189,2]
[353265691,1739722272056,-500.0,0.00012189,2]
[353265692,1739722272065,-500.0,0.00012189,2]
[353265693,1739722272076,-500.0,0.00012189,2]
[353265694,1739722272086,-500.0,0.00012189,2]
[353265695,1739722272095,-500.0,0.00012189,2]
[353265696,1739722272105,-500.0,0.00012189,2]
[353265697,1739722272116,-500.0,0.00012189,2]
[353265698,1739722272126,-500.0,0.00012189,2]
[353265699,1739722272135,-500.0,0.00012189,2]
[353265700,1739722272144,-649.78,0.00012189,2]
[353265701,1739722272154,-1206.44,0.00012189,2]
[353265702,1739722272164,-500.0,0.00012189,2]
[353265703,1739722272174,-500.0,0.00012189,2]
[353265704,1739722272183,-334.019757,0.00012189,2]
[353265705,1739722272193,-706.8,0.00012189,2]
[353265706,1739722272203,-500.0,0.00012189,2]
[353265707,1739722272212,-768.0,0.00012189,2]
[353265708,1739722272222,-500.0,0.00012189,2]
[353265709,1739722272231,-442.486785,0.00012189,2]
[353265710,1739722272241,-500.0,0.00012189,2]
[353265711,1739722272251,-2145.36,0.00012189,2]
[353265712,1739722272260,-956.97,0.00012189,2]
[353265713,1739722272270,-579.91,0.00012189,2]
[353265714,1739722272279,-500.0,0.00012189,2]
[353265715,1739722272289,-536.29,0.00012189,2]
[353265716,1739722272298,-747.46,0.00012189,2]
[353265717,1739722272308,-500.0,0.00012189,2]
[353265718,1739722272318,-692.26,0.00012189,2]
[353265719,1739722272327,-609.14,0.00012189,2]
[353265720,1739722272337,-809.97,0.00012189,2]
[353265721,1739722272347,-512.74,0.00012189,2]
[353265722,1739722272356,-500.0,0.00012189,2]
[353265723,1739722272366,-892.17,0.00012189,2]
[353265724,1739722272376,-500.0,0.00012189,2]
[353265725,1739722272386,-969.53,0.00012189,2]
[353265726,1739722272397,-663.59,0.00012189,2]
[353265727,1739722272406,-1575.94,0.00012189,2]
[353265728,1739722272416,-612.7,0.00012189,2]
[353265729,1739722272426,-500.0,0.00012189,2]
[353265730,1739722272436,-500.0,0.00012189,2]
[353265731,1739722272446,-558.19,0.00012189,2]
[353265732,1739722272456,-500.0,0.00012189,2]
[353265733,1739722272466,-537.83,0.00012189,2]
[353265734,1739722272476,-500.0,0.00012189,2]
[353265735,1739722272486,-690.88,0.00012189,2]
[353265736,1739722272496,-1095.32,0.00012189,2]
[353265737,1739722272506,-742.79,0.00012189,2]
[353265738,1739722272516,-500.0,0.00012189,2]
[353265739,1739722272526,-680.75,0.00012189,2]
[353265740,1739722272535,-500.0,0.00012189,2]
[353265741,1739722272545,-849.81,0.00012189,2]
[353265742,1739722272554,-865.4,0.00012189,2]
[353265743,1739722272564,-500.0,0.00012189,2]
[353265744,1739722272573,-649.43,0.00012189,2]
[353265745,1739722272583,-692.22,0.00012189,2]
[353265746,1739722272592,-1772.42,0.00012189,2]
[353265747,1739722272603,-873.89,0.00012189,2]
[353265748,1739722272614,-500.0,0.00012189,2]
[353265749,1739722272624,-788.66,0.00012189,2]
[353265750,1739722272634,-500.0,0.00012189,2]
[353265751,1739722272643,-730.86,0.00012189,2]
[353265752,1739722272654,-941.43,0.00012189,2]
[353265753,1739722272663,-500.0,0.00012189,2]
[353265754,1739722272673,-500.0,0.00012189,2]
[353265755,1739722272683,-899.47,0.00012189,2]
[353265756,1739722272692,-549.57,0.00012189,2]
[353265757,1739722272703,-500.0,0.00012189,2]
[353265758,1739722272714,-733.73,0.00012189,2]
[353265759,1739722272724,-500.0,0.00012189,2]
[353265760,1739722272733,-862.86,0.00012189,2]
[353265761,1739722272743,-604.23,0.00012189,2]
[353265762,1739722272752,-500.0,0.00012189,2]
[353265763,1739722272762,-784.87,0.00012189,2]
[353265764,1739722272772,-500.0,0.00012189,2]
[353265765,1739722272782,-975.8,0.00012189,2]
[353265766,1739722272792,-2237.07,0.00012189,2]
[353265767,1739722272801,-525.89,0.00012189,2]
[353265768,1739722272811,-374.11237359,0.0001219,2]
[353265769,1739722272821,-500.0,0.0001219,2]
[353265770,1739722272831,-639.44404004,0.0001219,2]
[353265771,1739722272840,-563.22537198,0.0001219,2]
[353265772,1739722272849,-500.0,0.0001219,2]
[353265773,1739722272860,-500.0,0.0001219,2]
[353265774,1739722272869,-500.0,0.0001219,2]
[353265775,1739722272879,-500.0,0.0001219,2]
[353265776,1739722272888,-579.79,0.0001219,2]
[353265777,1739722272898,-500.0,0.0001219,2]
[353265778,1739722272908,-509.41981827,0.0001219,2]
[353265779,1739722272918,-500.0,0.0001219,2]
[353265780,1739722272928,-500.0,0.0001219,2]
[353265781,1739722272938,-500.0,0.0001219,2]
[353265782,1739722272947,-500.0,0.0001219,2]
[353265783,1739722272957,-706.17,0.0001219,2]
[353265784,1739722272967,-500.0,0.0001219,2]
[353265785,1739722272977,-500.0,0.0001219,2]
[353265786,1739722272986,-500.0,0.0001219,2]
[353265787,1739722272996,-500.0,0.0001219,2]
[353265788,1739722273006,-460.11891932,0.0001219,2]
[353265789,1739722273016,-500.0,0.0001219,2]
[353265790,1739722273025,-721.65,0.0001219,2]
[353265791,1739722273039,-489.13832076,0.0001219,2]
[353265792,1739722273049,-2189.30641,0.0001221,2]
[353265793,1739722273058,-500.0,0.00012249,2]
[353265794,1739722273068,-500.0,0.00012249,2]
[353265795,1739722273079,-680.35,0.00012249,2]
[353265796,1739722273088,-500.0,0.00012249,2]
[353265797,1739722273098,-730.51,0.00012249,2]
[353265798,1739722273107,-744.11,0.00012249,2]
[353265799,1739722273117,-518.56,0.00012249,2]
[353265800,1739722273128,-446.4729823,0.00012249,2]
[353265801,1739722273137,-1094.78,0.00012249,2]
[353265802,1739722273147,-1254.55,0.00012249,2]
[353265803,1739722273156,-624.5,0.00012249,2]
[353265804,1739722273167,-561.95,0.00012249,2]
[353265805,1739722273178,-500.0,0.00012249,2]
[353265806,1739722273188,-1045.33,0.00012249,2]
[353265807,1739722273198,-500.0,0.00012249,2]
[353265808,1739722273207,-562.41,0.00012249,2]
[353265809,1739722273217,-537.7,0.00012249,2]
[353265810,1739722273227,-1330.29,0.00012249,2]
[353265811,1739722273236,-1309.87,0.00012249,2]
[353265812,1739722273246,-500.0,0.00012249,2]
[353265813,1739722273255,-500.0,0.00012249,2]
[353265814,1739722273266,-587.45,0.00012249,2]